[Event "Titled Tuesday Blitz July 4 Early 2023"]
[White "KorolDimitriy75"]
[Black "Modric, Nesa"]
[BlackFideId "922579"]
[WhiteElo "2416"]
[BlackElo "2268"]
[Result "1-0"]
[Round "11"]
[TimeControl "180+2"]
[Date "2023.07.04"]
[WhiteClock "0:00:01"]
[BlackClock "0:00:00"]
[Board "122"]

1. d4 {[%clk 0:03:00]}  e6 {[%clk 0:02:53]} 2. c4 {[%clk 0:03:01]}  d5 {[%clk 0:02:52]} 3. Nc3 {[%clk 0:03:01]}  c6 {[%clk 0:02:51]} 4. e3 {[%clk 0:03:01]}  Nf6 {[%clk 0:02:45]} 5. Nf3 {[%clk 0:03:00]}  Nbd7 {[%clk 0:02:40]} 6. Bd3 {[%clk 0:03:01]}  Be7 {[%clk 0:02:31]} 7. O-O {[%clk 0:03:00]}  O-O {[%clk 0:02:31]} 8. e4 {[%clk 0:03:00]}  dxe4 {[%clk 0:02:30]} 9. Nxe4 {[%clk 0:03:00]}  Nxe4 {[%clk 0:02:30]} 10. Bxe4 {[%clk 0:03:01]}  Nf6 {[%clk 0:02:29]} 11. Bc2 {[%clk 0:03:02]}  Qc7 {[%clk 0:02:29]} 12. Bg5 {[%clk 0:03:00]}  c5 {[%clk 0:02:28]} 13. Qd3 {[%clk 0:02:59]}  g6 {[%clk 0:02:26]} 14. Rad1 {[%clk 0:02:29]}  b6 {[%clk 0:02:24]} 15. dxc5 {[%clk 0:01:57]}  bxc5 {[%clk 0:02:10]} 16. Rfe1 {[%clk 0:01:24]}  Rd8 {[%clk 0:02:04]} 17. Qc3 {[%clk 0:01:16]}  Ne8 {[%clk 0:01:45]} 18. Rxd8 {[%clk 0:00:56]}  Bxd8 {[%clk 0:01:40]} 19. Bxd8 {[%clk 0:00:32]}  Qxd8 {[%clk 0:01:39]} 20. Rd1 {[%clk 0:00:31]}  Qc7 {[%clk 0:01:30]} 21. Ne5 {[%clk 0:00:31]}  f6 {[%clk 0:01:24]} 22. Ng4 {[%clk 0:00:26]}  Kf7 {[%clk 0:01:21]} 23. h3 {[%clk 0:00:18]}  h5 {[%clk 0:01:15]} 24. Ne3 {[%clk 0:00:17]}  Bb7 {[%clk 0:01:14]} 25. Qd3 {[%clk 0:00:16]}  Bc6 {[%clk 0:01:11]} 26. Qxg6+ {[%clk 0:00:16]}  Kf8 {[%clk 0:01:05]} 27. Qxh5 {[%clk 0:00:16]}  Rd8 {[%clk 0:01:02]} 28. Qh8+ {[%clk 0:00:16]}  Ke7 {[%clk 0:01:01]} 29. Qh7+ {[%clk 0:00:15]}  Kf8 {[%clk 0:00:58]} 30. Qh6+ {[%clk 0:00:15]}  Ke7 {[%clk 0:00:56]} 31. Rxd8 {[%clk 0:00:12]}  Qxd8 {[%clk 0:00:55]} 32. Bg6 {[%clk 0:00:12]}  Kd6 {[%clk 0:00:47]} 33. Qh7 {[%clk 0:00:11]}  Nc7 {[%clk 0:00:41]} 34. Qf7 {[%clk 0:00:10]}  f5 {[%clk 0:00:23]} 35. Qg7 {[%clk 0:00:08]}  Qg5 {[%clk 0:00:18]} 36. Qf8+ {[%clk 0:00:07]}  Ke5 {[%clk 0:00:15]} 37. Qg7+ {[%clk 0:00:06]}  Kd6 {[%clk 0:00:14]} 38. Qf8+ {[%clk 0:00:06]}  Ke5 {[%clk 0:00:14]} 39. Qb8 {[%clk 0:00:05]}  Qe7 {[%clk 0:00:11]} 40. h4 {[%clk 0:00:05]}  Kf6 {[%clk 0:00:11]} 41. h5 {[%clk 0:00:05]}  Be4 {[%clk 0:00:07]} 42. f3 {[%clk 0:00:04]}  Bd3 {[%clk 0:00:06]} 43. Qh8+ {[%clk 0:00:03]}  Kg5 {[%clk 0:00:05]} 44. Qe5 {[%clk 0:00:02]}  Kh6 {[%clk 0:00:03]} 45. Qf4+ {[%clk 0:00:01]}  Kg7 {[%clk 0:00:03]} 46. Qe5+ {[%clk 0:00:01]}  Kh6 {[%clk 0:00:03]} 47. f4 {[%clk 0:00:01]}  Ne8 {[%clk 0:00:00]} 48. Qh8+ {[%clk 0:00:01]} 1-0


[Site "https://www.chess.com"]

[Event "Titled Tuesday Blitz July 4 Early 2023"]
[White "Philippe, Guillaume"]
[Black "Singgih, Diajeng Theresa"]
[WhiteFideId "36048763"]
[BlackFideId "7104391"]
[WhiteElo "2413"]
[BlackElo "2156"]
[Result "1-0"]
[Round "11"]
[TimeControl "180+2"]
[Date "2023.07.04"]
[WhiteClock "0:02:31"]
[BlackClock "0:02:20"]
[Board "123"]

1. e4 {[%clk 0:03:00]}  e5 {[%clk 0:02:53]} 2. Nf3 {[%clk 0:03:00]}  Nc6 {[%clk 0:02:54]} 3. Bb5 {[%clk 0:03:00]}  a6 {[%clk 0:02:54]} 4. Ba4 {[%clk 0:03:00]}  Bc5 {[%clk 0:02:53]} 5. c3 {[%clk 0:02:56]}  Nf6 {[%clk 0:02:53]} 6. Bc2 {[%clk 0:02:47]}  O-O {[%clk 0:02:51]} 7. d4 {[%clk 0:02:45]}  exd4 {[%clk 0:02:50]} 8. cxd4 {[%clk 0:02:46]}  Bb4+ {[%clk 0:02:50]} 9. Bd2 {[%clk 0:02:46]}  Bxd2+ {[%clk 0:02:49]} 10. Nbxd2 {[%clk 0:02:45]}  d6 {[%clk 0:02:39]} 11. O-O {[%clk 0:02:43]}  Bg4 {[%clk 0:02:39]} 12. Qe1 {[%clk 0:02:38]}  Nh5 {[%clk 0:02:32]} 13. Qe3 {[%clk 0:02:38]}  Qf6 {[%clk 0:02:31]} 14. h3 {[%clk 0:02:37]}  Bd7 {[%clk 0:02:30]} 15. Rfe1 {[%clk 0:02:31]}  Nf4 {[%clk 0:02:29]} 16. e5 {[%clk 0:02:31]}  dxe5 {[%clk 0:02:27]} 17. dxe5 {[%clk 0:02:32]}  Qg5 {[%clk 0:02:20]} 18. Nxg5 {[%clk 0:02:31]} 1-0


[Site "https://www.chess.com"]

[Event "Titled Tuesday Blitz July 4 Early 2023"]
[White "Topalov, Aleksandar"]
[Black "Floresvillar Gonzalez, Luis Migu"]
[WhiteFideId "925659"]
[BlackFideId "5100542"]
[WhiteElo "2385"]
[BlackElo "2108"]
[Result "1-0"]
[Round "11"]
[TimeControl "180+2"]
[Date "2023.07.04"]
[WhiteClock "0:00:17"]
[BlackClock "0:01:09"]
[Board "125"]

1. b3 {[%clk 0:02:13]}  e5 {[%clk 0:02:56]} 2. Bb2 {[%clk 0:02:12]}  d6 {[%clk 0:02:56]} 3. d4 {[%clk 0:02:12]}  exd4 {[%clk 0:02:55]} 4. Qxd4 {[%clk 0:02:11]}  Nc6 {[%clk 0:02:53]} 5. Qf4 {[%clk 0:02:11]}  Nf6 {[%clk 0:02:40]} 6. Nc3 {[%clk 0:02:11]}  Be7 {[%clk 0:02:37]} 7. Nf3 {[%clk 0:02:11]}  O-O {[%clk 0:02:34]} 8. O-O-O {[%clk 0:02:11]}  Be6 {[%clk 0:02:31]} 9. e4 {[%clk 0:02:06]}  Qc8 {[%clk 0:02:30]} 10. h3 {[%clk 0:02:01]}  a5 {[%clk 0:02:26]} 11. a4 {[%clk 0:01:59]}  Nb4 {[%clk 0:02:15]} 12. Kb1 {[%clk 0:01:58]}  c6 {[%clk 0:02:13]} 13. g4 {[%clk 0:01:53]}  b5 {[%clk 0:02:13]} 14. Nd4 {[%clk 0:01:42]}  bxa4 {[%clk 0:02:09]} 15. Nxa4 {[%clk 0:01:42]}  c5 {[%clk 0:02:05]} 16. Nxe6 {[%clk 0:01:38]}  fxe6 {[%clk 0:01:56]} 17. Nb6 {[%clk 0:01:03]}  Qc6 {[%clk 0:01:52]} 18. Nxa8 {[%clk 0:01:02]}  Qxa8 {[%clk 0:01:52]} 19. Bc4 {[%clk 0:00:55]}  d5 {[%clk 0:01:51]} 20. exd5 {[%clk 0:00:54]}  exd5 {[%clk 0:01:51]} 21. Qe5 {[%clk 0:00:45]}  dxc4 {[%clk 0:01:47]} 22. Qxe7 {[%clk 0:00:40]}  cxb3 {[%clk 0:01:47]} 23. cxb3 {[%clk 0:00:39]}  h6 {[%clk 0:01:42]} 24. Bxf6 {[%clk 0:00:34]}  gxf6 {[%clk 0:01:41]} 25. Rhe1 {[%clk 0:00:25]}  a4 {[%clk 0:01:35]} 26. Rd7 {[%clk 0:00:22]}  axb3 {[%clk 0:01:09]} 27. Qg7# {[%clk 0:00:17]} 1-0


[Site "https://www.chess.com"]

[Event "Titled Tuesday Blitz July 4 Early 2023"]
[White "Politov, Pavel Y."]
[Black "Duarte, Leonardo"]
[WhiteFideId "24110515"]
[BlackFideId "110582"]
[WhiteElo "2096"]
[BlackElo "2385"]
[Result "0-1"]
[Round "11"]
[TimeControl "180+2"]
[Date "2023.07.04"]
[WhiteClock "0:00:00"]
[BlackClock "0:00:54"]
[Board "126"]

1. e4 {[%clk 0:03:00]}  e5 {[%clk 0:02:59]} 2. Nf3 {[%clk 0:03:00]}  Nc6 {[%clk 0:02:59]} 3. Bc4 {[%clk 0:02:59]}  Bc5 {[%clk 0:02:59]} 4. d3 {[%clk 0:02:59]}  Nf6 {[%clk 0:02:59]} 5. Nbd2 {[%clk 0:02:57]}  a5 {[%clk 0:02:59]} 6. c3 {[%clk 0:02:47]}  O-O {[%clk 0:02:57]} 7. O-O {[%clk 0:02:46]}  d6 {[%clk 0:02:57]} 8. Re1 {[%clk 0:02:45]}  Ba7 {[%clk 0:02:53]} 9. Nf1 {[%clk 0:02:44]}  Ne7 {[%clk 0:02:53]} 10. Ng3 {[%clk 0:02:36]}  c6 {[%clk 0:02:53]} 11. Nh4 {[%clk 0:02:25]}  d5 {[%clk 0:02:46]} 12. Bb3 {[%clk 0:02:15]}  dxe4 {[%clk 0:02:05]} 13. dxe4 {[%clk 0:02:12]}  Ng4 {[%clk 0:01:58]} 14. Re2 {[%clk 0:01:47]}  Qxd1+ {[%clk 0:01:42]} 15. Bxd1 {[%clk 0:01:44]}  Be6 {[%clk 0:01:42]} 16. h3 {[%clk 0:01:31]}  Rfd8 {[%clk 0:01:37]} 17. Bg5 {[%clk 0:01:13]}  f6 {[%clk 0:01:36]} 18. hxg4 {[%clk 0:00:53]}  fxg5 {[%clk 0:01:36]} 19. Nhf5 {[%clk 0:00:52]}  Ng6 {[%clk 0:01:30]} 20. Bb3 {[%clk 0:00:36]}  Bxb3 {[%clk 0:01:27]} 21. axb3 {[%clk 0:00:34]}  Nf4 {[%clk 0:01:28]} 22. Rc2 {[%clk 0:00:32]}  Rd3 {[%clk 0:01:25]} 23. Ne2 {[%clk 0:00:18]}  g6 {[%clk 0:01:18]} 24. Nfg3 {[%clk 0:00:13]}  Ne6 {[%clk 0:01:15]} 25. Kf1 {[%clk 0:00:10]}  Rf8 {[%clk 0:01:06]} 26. f3 {[%clk 0:00:09]}  Bb6 {[%clk 0:01:04]} 27. Ke1 {[%clk 0:00:06]}  Nc5 {[%clk 0:01:02]} 28. Rd1 {[%clk 0:00:05]}  Rfd8 {[%clk 0:01:00]} 29. Rxd3 {[%clk 0:00:05]}  Rxd3 {[%clk 0:01:01]} 30. b4 {[%clk 0:00:04]}  Nb3 {[%clk 0:01:00]} 31. bxa5 {[%clk 0:00:02]}  Bxa5 {[%clk 0:01:00]} 32. Nf1 {[%clk 0:00:02]}  Bb6 {[%clk 0:00:59]} 33. Nc1 {[%clk 0:00:02]}  Nxc1 {[%clk 0:00:58]} 34. Rxc1 {[%clk 0:00:03]}  h5 {[%clk 0:00:58]} 35. Rd1 {[%clk 0:00:03]}  Rxd1+ {[%clk 0:00:58]} 36. Kxd1 {[%clk 0:00:03]}  h4 {[%clk 0:00:57]} 37. Nd2 {[%clk 0:00:02]}  Kf7 {[%clk 0:00:55]} 38. Nc4 {[%clk 0:00:02]}  Bc7 {[%clk 0:00:56]} 39. Ke2 {[%clk 0:00:03]}  b5 {[%clk 0:00:57]} 40. Nd2 {[%clk 0:00:01]}  Ke6 {[%clk 0:00:57]} 41. Nb3 {[%clk 0:00:01]}  Bb6 {[%clk 0:00:58]} 42. Nd2 {[%clk 0:00:01]}  c5 {[%clk 0:00:57]} 43. Kf1 {[%clk 0:00:02]}  c4 {[%clk 0:00:58]} 44. Nb1 {[%clk 0:00:02]}  Be3 {[%clk 0:00:58]} 45. Na3 {[%clk 0:00:02]}  Bc1 {[%clk 0:00:57]} 46. Nxb5 {[%clk 0:00:01]}  Bxb2 {[%clk 0:00:58]} 47. Nc7+ {[%clk 0:00:01]}  Kd6 {[%clk 0:00:57]} 48. Nb5+ {[%clk 0:00:01]}  Kc6 {[%clk 0:00:56]} 49. Na7+ {[%clk 0:00:01]}  Kb7 {[%clk 0:00:55]} 50. Nb5 {[%clk 0:00:01]}  Kc6 {[%clk 0:00:55]} 51. Na7+ {[%clk 0:00:00]}  Kc5 {[%clk 0:00:54]} 0-1


[Site "https://www.chess.com"]

[Event "Titled Tuesday Blitz July 4 Early 2023"]
[White "Sailer, Mike"]
[Black "Ljukin, Sergei"]
[WhiteFideId "2012901"]
[BlackFideId "14102200"]
[WhiteElo "2125"]
[BlackElo "2495"]
[Result "0-1"]
[Round "11"]
[TimeControl "180+2"]
[Date "2023.07.04"]
[WhiteClock "0:01:01"]
[BlackClock "0:00:52"]
[Board "127"]

1. d4 {[%clk 0:03:00]}  d5 {[%clk 0:03:00]} 2. Nc3 {[%clk 0:03:01]}  Nf6 {[%clk 0:02:59]} 3. Bf4 {[%clk 0:03:01]}  a6 {[%clk 0:02:58]} 4. e3 {[%clk 0:03:01]}  c5 {[%clk 0:02:58]} 5. Nf3 {[%clk 0:02:59]}  Nc6 {[%clk 0:02:57]} 6. Be2 {[%clk 0:02:56]}  e6 {[%clk 0:02:55]} 7. Ne5 {[%clk 0:02:55]}  Be7 {[%clk 0:02:54]} 8. g4 {[%clk 0:02:48]}  O-O {[%clk 0:02:48]} 9. g5 {[%clk 0:02:46]}  Nd7 {[%clk 0:02:48]} 10. h4 {[%clk 0:02:46]}  Ndxe5 {[%clk 0:02:43]} 11. dxe5 {[%clk 0:02:46]}  b5 {[%clk 0:02:39]} 12. Bf3 {[%clk 0:02:33]}  Bb7 {[%clk 0:02:35]} 13. Qd2 {[%clk 0:02:30]}  Qc7 {[%clk 0:02:25]} 14. h5 {[%clk 0:02:22]}  Nxe5 {[%clk 0:02:22]} 15. Bg2 {[%clk 0:02:21]}  Bd6 {[%clk 0:02:20]} 16. O-O-O {[%clk 0:02:12]}  Nc4 {[%clk 0:02:18]} 17. Bxd6 {[%clk 0:02:12]}  Qxd6 {[%clk 0:02:17]} 18. Qe2 {[%clk 0:02:12]}  Qe5 {[%clk 0:02:13]} 19. Rde1 {[%clk 0:01:58]}  b4 {[%clk 0:02:12]} 20. f4 {[%clk 0:01:56]}  Qxe3+ {[%clk 0:02:02]} 21. Qxe3 {[%clk 0:01:55]}  Nxe3 {[%clk 0:02:03]} 22. Rxe3 {[%clk 0:01:56]}  bxc3 {[%clk 0:02:03]} 23. Rxc3 {[%clk 0:01:56]}  Rfc8 {[%clk 0:01:58]} 24. h6 {[%clk 0:01:46]}  g6 {[%clk 0:01:55]} 25. Rb3 {[%clk 0:01:39]}  Rab8 {[%clk 0:01:52]} 26. Rb6 {[%clk 0:01:37]}  Rc6 {[%clk 0:01:51]} 27. Rxc6 {[%clk 0:01:30]}  Bxc6 {[%clk 0:01:51]} 28. Rd1 {[%clk 0:01:31]}  Rb4 {[%clk 0:01:49]} 29. Rf1 {[%clk 0:01:30]}  Kf8 {[%clk 0:01:47]} 30. c3 {[%clk 0:01:30]}  Rb8 {[%clk 0:01:43]} 31. Rd1 {[%clk 0:01:23]}  Bb5 {[%clk 0:01:36]} 32. b3 {[%clk 0:01:21]}  Ke7 {[%clk 0:01:34]} 33. Kc2 {[%clk 0:01:21]}  Rd8 {[%clk 0:01:28]} 34. Rd2 {[%clk 0:01:21]}  Bc6 {[%clk 0:01:17]} 35. b4 {[%clk 0:01:15]}  cxb4 {[%clk 0:01:15]} 36. cxb4 {[%clk 0:01:15]}  Ba4+ {[%clk 0:01:12]} 37. Kd3 {[%clk 0:01:15]}  Rc8 {[%clk 0:01:12]} 38. Kd4 {[%clk 0:01:10]}  Rc4+ {[%clk 0:01:00]} 39. Ke5 {[%clk 0:01:10]}  Rxb4 {[%clk 0:01:00]} 40. a3 {[%clk 0:01:05]}  Rb3 {[%clk 0:00:54]} 41. Rd4 {[%clk 0:01:04]}  Re3+ {[%clk 0:00:52]} 42. Be4 {[%clk 0:01:01]}  Rxe4+ {[%clk 0:00:52]} 0-1


[Site "https://www.chess.com"]

[Event "Titled Tuesday Blitz July 4 Early 2023"]
[White "Koridze, Lile"]
[Black "Shapiro, Viktor"]
[WhiteFideId "13612514"]
[BlackFideId "4175700"]
[WhiteElo "2347"]
[BlackElo "2454"]
[Result "0-1"]
[Round "11"]
[TimeControl "180+2"]
[Date "2023.07.04"]
[WhiteClock "0:01:39"]
[BlackClock "0:01:17"]
[Board "128"]

1. d4 {[%clk 0:03:00]}  Nf6 {[%clk 0:02:57]} 2. c4 {[%clk 0:03:00]}  e6 {[%clk 0:02:57]} 3. Nf3 {[%clk 0:02:59]}  c5 {[%clk 0:02:55]} 4. d5 {[%clk 0:02:59]}  e5 {[%clk 0:02:55]} 5. Nc3 {[%clk 0:02:56]}  d6 {[%clk 0:02:55]} 6. e4 {[%clk 0:02:55]}  g6 {[%clk 0:02:55]} 7. h3 {[%clk 0:02:54]}  Bg7 {[%clk 0:02:55]} 8. Rb1 {[%clk 0:02:52]}  O-O {[%clk 0:02:55]} 9. a3 {[%clk 0:02:52]}  a5 {[%clk 0:02:51]} 10. Bd3 {[%clk 0:02:48]}  Nh5 {[%clk 0:02:45]} 11. Bg5 {[%clk 0:02:43]}  Bf6 {[%clk 0:02:43]} 12. Be3 {[%clk 0:02:38]}  Nf4 {[%clk 0:02:42]} 13. O-O {[%clk 0:02:38]}  g5 {[%clk 0:02:40]} 14. Nh2 {[%clk 0:02:36]}  h6 {[%clk 0:02:38]} 15. Be2 {[%clk 0:02:36]}  Bg7 {[%clk 0:02:37]} 16. Bg4 {[%clk 0:02:37]}  Nd7 {[%clk 0:02:37]} 17. Bf5 {[%clk 0:02:34]}  Nf6 {[%clk 0:02:37]} 18. Bxc8 {[%clk 0:02:30]}  Qxc8 {[%clk 0:02:37]} 19. Ng4 {[%clk 0:02:26]}  b6 {[%clk 0:02:23]} 20. Qf3 {[%clk 0:02:22]}  Qd8 {[%clk 0:02:08]} 21. Kh2 {[%clk 0:02:19]}  Nh7 {[%clk 0:01:42]} 22. Bd2 {[%clk 0:02:08]}  f5 {[%clk 0:01:38]} 23. Ne3 {[%clk 0:02:04]}  g4 {[%clk 0:01:22]} 24. Qg3 {[%clk 0:01:39]}  Nh5 {[%clk 0:01:17]} 0-1


[Site "https://www.chess.com"]

[Event "Titled Tuesday Blitz July 4 Early 2023"]
[White "Tuleyeva-Aketayeva, Dana"]
[Black "Girya, Olga"]
[WhiteFideId "13701932"]
[BlackFideId "4195752"]
[WhiteElo "2244"]
[BlackElo "2562"]
[Result "0-1"]
[Round "11"]
[TimeControl "180+2"]
[Date "2023.07.04"]
[WhiteClock "0:00:26"]
[BlackClock "0:00:24"]
[Board "134"]

1. d4 {[%clk 0:03:00]}  Nf6 {[%clk 0:02:59]} 2. Nf3 {[%clk 0:03:00]}  d5 {[%clk 0:02:57]} 3. g3 {[%clk 0:03:00]}  e6 {[%clk 0:02:54]} 4. Bg2 {[%clk 0:03:01]}  Be7 {[%clk 0:02:55]} 5. O-O {[%clk 0:03:01]}  O-O {[%clk 0:02:55]} 6. c4 {[%clk 0:03:02]}  dxc4 {[%clk 0:02:55]} 7. Ne5 {[%clk 0:03:02]}  Nc6 {[%clk 0:02:55]} 8. Bxc6 {[%clk 0:03:00]}  bxc6 {[%clk 0:02:56]} 9. Nxc6 {[%clk 0:03:00]}  Qe8 {[%clk 0:02:56]} 10. Nxe7+ {[%clk 0:03:01]}  Qxe7 {[%clk 0:02:57]} 11. Qa4 {[%clk 0:03:01]}  e5 {[%clk 0:02:56]} 12. Qxc4 {[%clk 0:03:01]}  exd4 {[%clk 0:02:50]} 13. Bg5 {[%clk 0:03:01]}  h6 {[%clk 0:02:44]} 14. Bxf6 {[%clk 0:02:54]}  Qxf6 {[%clk 0:02:45]} 15. Nd2 {[%clk 0:02:51]}  Ba6 {[%clk 0:02:42]} 16. Qxc7 {[%clk 0:02:46]}  Bxe2 {[%clk 0:02:41]} 17. Rfe1 {[%clk 0:02:46]}  d3 {[%clk 0:02:41]} 18. Qc3 {[%clk 0:02:38]}  Qg5 {[%clk 0:02:01]} 19. Rac1 {[%clk 0:02:06]}  Rac8 {[%clk 0:01:30]} 20. Qb4 {[%clk 0:02:02]}  Rb8 {[%clk 0:01:20]} 21. Qc3 {[%clk 0:01:32]}  Rfc8 {[%clk 0:01:20]} 22. f4 {[%clk 0:01:08]}  Rxc3 {[%clk 0:01:13]} 23. fxg5 {[%clk 0:01:08]}  Rxc1 {[%clk 0:01:13]} 24. Rxc1 {[%clk 0:01:09]}  Rxb2 {[%clk 0:01:11]} 25. Nf1 {[%clk 0:01:03]}  hxg5 {[%clk 0:01:01]} 26. Rc8+ {[%clk 0:00:59]}  Kh7 {[%clk 0:01:01]} 27. Rd8 {[%clk 0:00:58]}  Rxa2 {[%clk 0:00:59]} 28. h3 {[%clk 0:00:56]}  Ra1 {[%clk 0:00:59]} 29. Kh2 {[%clk 0:00:53]}  Rxf1 {[%clk 0:00:58]} 30. Rd7 {[%clk 0:00:52]}  Bf3 {[%clk 0:00:57]} 31. g4 {[%clk 0:00:50]}  Be4 {[%clk 0:00:51]} 32. Rd4 {[%clk 0:00:46]}  Re1 {[%clk 0:00:38]} 33. h4 {[%clk 0:00:44]}  gxh4 {[%clk 0:00:34]} 34. g5 {[%clk 0:00:44]}  Re2+ {[%clk 0:00:32]} 35. Kh3 {[%clk 0:00:42]}  d2 {[%clk 0:00:32]} 36. Kxh4 {[%clk 0:00:40]}  Bc2 {[%clk 0:00:31]} 37. g6+ {[%clk 0:00:40]}  fxg6 {[%clk 0:00:30]} 38. Kg5 {[%clk 0:00:36]}  Re5+ {[%clk 0:00:27]} 39. Kh4 {[%clk 0:00:29]}  Re4+ {[%clk 0:00:27]} 40. Kg5 {[%clk 0:00:28]}  Re5+ {[%clk 0:00:23]} 41. Kh4 {[%clk 0:00:28]}  d1=Q {[%clk 0:00:23]} 42. Rxd1 {[%clk 0:00:27]}  Bxd1 {[%clk 0:00:23]} 43. Kg3 {[%clk 0:00:27]}  g5 {[%clk 0:00:22]} 44. Kh3 {[%clk 0:00:27]}  a5 {[%clk 0:00:22]} 45. Kg3 {[%clk 0:00:27]}  a4 {[%clk 0:00:23]} 46. Kh2 {[%clk 0:00:27]}  a3 {[%clk 0:00:24]} 47. Kg1 {[%clk 0:00:27]}  a2 {[%clk 0:00:24]} 48. Kh1 {[%clk 0:00:28]}  a1=Q {[%clk 0:00:24]} 49. Kh2 {[%clk 0:00:28]}  Qb2+ {[%clk 0:00:24]} 50. Kg3 {[%clk 0:00:26]}  Re3# {[%clk 0:00:24]} 0-1


[Site "https://www.chess.com"]

[Event "Titled Tuesday Blitz July 4 Early 2023"]
[White "Pein, Jonathan"]
[Black "laimis61"]
[WhiteFideId "417092"]
[WhiteElo "2411"]
[BlackElo "2237"]
[Result "1-0"]
[Round "11"]
[TimeControl "180+2"]
[Date "2023.07.04"]
[WhiteClock "0:00:11"]
[BlackClock "0:00:00"]
[Board "137"]

1. Nf3 {[%clk 0:01:52]}  d5 {[%clk 0:02:52]} 2. b3 {[%clk 0:01:53]}  Nf6 {[%clk 0:02:50]} 3. Bb2 {[%clk 0:01:54]}  g6 {[%clk 0:02:50]} 4. e3 {[%clk 0:01:45]}  Bg7 {[%clk 0:02:50]} 5. c4 {[%clk 0:01:46]}  c6 {[%clk 0:02:46]} 6. d4 {[%clk 0:01:45]}  O-O {[%clk 0:02:46]} 7. Nc3 {[%clk 0:01:45]}  Bg4 {[%clk 0:02:40]} 8. Be2 {[%clk 0:01:45]}  Nbd7 {[%clk 0:02:38]} 9. O-O {[%clk 0:01:42]}  Re8 {[%clk 0:02:32]} 10. Rc1 {[%clk 0:01:37]}  dxc4 {[%clk 0:02:21]} 11. bxc4 {[%clk 0:01:35]}  e5 {[%clk 0:02:17]} 12. h3 {[%clk 0:01:31]}  Bxf3 {[%clk 0:02:16]} 13. Bxf3 {[%clk 0:01:32]}  e4 {[%clk 0:02:14]} 14. Be2 {[%clk 0:01:32]}  h5 {[%clk 0:02:09]} 15. Qb3 {[%clk 0:01:22]}  Rb8 {[%clk 0:02:06]} 16. Rfd1 {[%clk 0:01:20]}  Nh7 {[%clk 0:02:05]} 17. d5 {[%clk 0:01:15]}  Nc5 {[%clk 0:02:02]} 18. Qc2 {[%clk 0:01:15]}  Qg5 {[%clk 0:01:58]} 19. Ba3 {[%clk 0:01:05]}  Bf8 {[%clk 0:01:41]} 20. Bxc5 {[%clk 0:00:53]}  Bxc5 {[%clk 0:01:38]} 21. Nxe4 {[%clk 0:00:53]}  Rxe4 {[%clk 0:01:35]} 22. Qxe4 {[%clk 0:00:53]}  Nf6 {[%clk 0:01:35]} 23. Qf3 {[%clk 0:00:35]}  Kg7 {[%clk 0:01:22]} 24. d6 {[%clk 0:00:13]}  Nd7 {[%clk 0:01:21]} 25. Qf4 {[%clk 0:00:12]}  Qxf4 {[%clk 0:01:17]} 26. exf4 {[%clk 0:00:13]}  Re8 {[%clk 0:01:16]} 27. Bf3 {[%clk 0:00:14]}  Re6 {[%clk 0:01:12]} 28. Rb1 {[%clk 0:00:14]}  b6 {[%clk 0:01:10]} 29. Bxc6 {[%clk 0:00:13]}  Nb8 {[%clk 0:01:06]} 30. Bd5 {[%clk 0:00:08]}  Rxd6 {[%clk 0:01:05]} 31. Re1 {[%clk 0:00:08]}  Rd7 {[%clk 0:01:00]} 32. g3 {[%clk 0:00:09]}  Na6 {[%clk 0:00:59]} 33. Kg2 {[%clk 0:00:08]}  Nb4 {[%clk 0:00:58]} 34. a3 {[%clk 0:00:08]}  Nxd5 {[%clk 0:00:55]} 35. cxd5 {[%clk 0:00:08]}  Rxd5 {[%clk 0:00:54]} 36. Rbd1 {[%clk 0:00:09]}  Rf5 {[%clk 0:00:50]} 37. a4 {[%clk 0:00:09]}  g5 {[%clk 0:00:49]} 38. Re4 {[%clk 0:00:06]}  gxf4 {[%clk 0:00:47]} 39. Rxf4 {[%clk 0:00:07]}  Rxf4 {[%clk 0:00:47]} 40. gxf4 {[%clk 0:00:08]}  a5 {[%clk 0:00:45]} 41. Kf3 {[%clk 0:00:09]}  Kf6 {[%clk 0:00:45]} 42. Rd5 {[%clk 0:00:08]}  Kg6 {[%clk 0:00:44]} 43. Ke2 {[%clk 0:00:09]}  f5 {[%clk 0:00:43]} 44. f3 {[%clk 0:00:09]}  Kf6 {[%clk 0:00:41]} 45. Kd3 {[%clk 0:00:09]}  Ke6 {[%clk 0:00:40]} 46. Re5+ {[%clk 0:00:09]}  Kf6 {[%clk 0:00:40]} 47. Kc4 {[%clk 0:00:10]}  Bd6 {[%clk 0:00:40]} 48. Rb5 {[%clk 0:00:10]}  Bxf4 {[%clk 0:00:39]} 49. Rxb6+ {[%clk 0:00:10]}  Kg5 {[%clk 0:00:39]} 50. Rb5 {[%clk 0:00:09]}  Bd2 {[%clk 0:00:39]} 51. Kd3 {[%clk 0:00:09]}  Be1 {[%clk 0:00:38]} 52. Ke2 {[%clk 0:00:10]}  Bc3 {[%clk 0:00:37]} 53. Rc5 {[%clk 0:00:10]}  Bb4 {[%clk 0:00:37]} 54. Rc4 {[%clk 0:00:10]}  Bd6 {[%clk 0:00:34]} 55. h4+ {[%clk 0:00:10]}  Kf6 {[%clk 0:00:33]} 56. Rc6 {[%clk 0:00:11]}  Ke5 {[%clk 0:00:33]} 57. Ke3 {[%clk 0:00:08]}  f4+ {[%clk 0:00:27]} 58. Kd3 {[%clk 0:00:08]}  Kd5 {[%clk 0:00:27]} 59. Rb6 {[%clk 0:00:08]}  Bc7 {[%clk 0:00:23]} 60. Rh6 {[%clk 0:00:08]}  Kc5 {[%clk 0:00:21]} 61. Rxh5+ {[%clk 0:00:08]}  Kb4 {[%clk 0:00:22]} 62. Rh7 {[%clk 0:00:08]}  Bd6 {[%clk 0:00:21]} 63. h5 {[%clk 0:00:08]}  Kxa4 {[%clk 0:00:20]} 64. h6 {[%clk 0:00:09]}  Be5 {[%clk 0:00:19]} 65. Re7 {[%clk 0:00:09]}  Ba1 {[%clk 0:00:17]} 66. Re4+ {[%clk 0:00:10]}  Kb3 {[%clk 0:00:17]} 67. Rd4 {[%clk 0:00:10]}  a4 {[%clk 0:00:16]} 68. h7 {[%clk 0:00:11]}  a3 {[%clk 0:00:16]} 69. h8=Q {[%clk 0:00:11]}  Bxd4 {[%clk 0:00:16]} 70. Qxd4 {[%clk 0:00:11]}  a2 {[%clk 0:00:00]} 71. Qa1 {[%clk 0:00:11]} 1-0


[Site "https://www.chess.com"]